Cogmind - Beta 9.1 @@@ ROGUE MODE // 2019.11.10 @ 11:35:54 Player: Rilt Result: Destroyed by G-34 Mercenary with Small Laser Performance ------------- Evolutions (1) 500 Regions Visited (2) 400 Robots Destroyed (14) 70 Value Destroyed (297) 297 Prototype IDs (0) 0 Alien Tech Used (0) 0 Bonus (0) 0 TOTAL SCORE: 1267 Bonus ------- None Cogmind --------- Core Integrity 0/400 Matter 296/450 Energy 100/100 System Corruption 2% Temperature Cool (12) Location -9/Materials Parts ------- Power (1) Propulsion (4) Utility (2) Medium Storage Unit Large Matter Pod Weapon (2) Hammer Inventory (8) Light Ion Engine Sensor Array Signal Interpreter Peak State ------------ Power Ion Engine Propulsion Aluminum Leg Aluminum Leg Aluminum Leg Aluminum Leg Utility Medium Storage Unit Propulsion Shielding Weapon Assault Rifle Light Assault Rifle Inventory Light Ion Engine Light Ion Engine Sensor Array Signal Interpreter Hammer [Rating: 9] Favorites ----------- Power Ion Engine Engine Ion Engine Propulsion Aluminum Leg Leg Aluminum Leg Utility Medium Storage Unit Storage Medium Storage Unit Processor Seismic Analyzer Protection Propulsion Shielding Weapon Light Assault Rifle Energy Gun Small Laser Ballistic Gun Light Assault Rifle Impact Weapon Hammer Build | -11 -10 -9 ------- Run | Scr Mat Mat Slots Evolved 2 | . . 2 Power . | . . . Propulsion 2 | . . 2 Utility . | . . . Weapon . | . . . Parts Attached 28 | 8 9 11 Power 5 | 2 2 1 Engine 5 | 2 2 1 Core . | . . . Reactor . | . . . Propulsion 8 | 2 2 4 Treads . | . . . Leg 8 | 2 2 4 Wheel . | . . . Hover . | . . . Flight . | . . . Utility 6 | 1 4 1 Device . | . . . Storage 4 | 1 2 1 Processor 1 | . 1 . Hackware . | . . . Protection 1 | . 1 . Artifact . | . . . Weapon 9 | 3 1 5 Energy Gun 2 | 1 . 1 Energy Cannon . | . . . Ballistic Gun 5 | 2 1 2 Ballistic Cannon . | . . . Launcher . | . . . Special Weapon . | . . . Impact Weapon 2 | . . 2 Slashing Weapon . | . . . Piercing Weapon . | . . . Special Melee Weapon . | . . . Unidentified Prototypes . | . . . Parts Lost 15 | . 1 14 Power 3 | . 1 2 Propulsion 6 | . . 6 Utility 1 | . . 1 Weapon 5 | . . 5 Highest Loss Streak 8 | . 1 8 Average Slot Usage (%) 91 | . 98 79 Engine 12 | . 13 10 Leg 30 | . 28 34 Storage 12 | . 13 11 Processor 4 | . 8 . Protection 4 | . 5 3 Ballistic Gun 23 | . 28 16 Naked Turns . | . . . Heaviest Build 19 | 11 17 19 Greatest Support 40 | 20 20 40 Greatest Overweight (x) 6 | . . 6 Average Overweight (x) . | . . . Largest Inventory Capacity 8 | 6 8 8 Average Capacity 7 | 5 7 8 Most Carried 8 | 4 8 8 Average Carried 5 | 1 5 6 Final Capacity 8 | 6 8 8 Final Carried 7 | 2 7 3 Class Distribution -------------------- 70% | Mutant 29% | Scavenger-Mutant Dominant Class ---------------- Mutant | -10/Materials Scavenger-Mutant | -9/Materials Resources | -11 -10 -9 ----------- Run | Scr Mat Mat Matter Collected 526 | 280 146 100 Remotely . | . . . Salvage Created 450 | . 308 142 Parts 30 | . 24 6 Haulers Intercepted . | . . . Recyclers Shooed . | . . . Parts Field Recycled . | . . . Retrieved Matter . | . . . Parts Self-Destructed . | . . . Prevented . | . . . Kills | -11 -10 -9 ------- Run | Scr Mat Mat Combat Hostiles Destroyed 12 | . 9 3 Guns 11 | . 9 2 Classes Destroyed 5 | . 4 1 Recycler 1 | . 1 . Watcher 1 | . 1 . Swarmer 6 | . 6 . Grunt 5 | . 3 2 Sentry 1 | . . 1 Best Kill Streak 3 | . 3 2 Combat Bots Only 3 | . 3 2 Max Kills in Single Turn 2 | . 2 1 Gunslinging 1 | . 1 . Exploded . | . . . Melee . | . . . Uniques/NPCs Destroyed . | . . . Combat | -11 -10 -9 -------- Run | Scr Mat Mat Damage Taken 2064 | . 417 1647 Core 487 | . 82 405 Absorbed by Shields . | . . . Core Remaining (%) 83 | 100 67 . Volleys Fired 46 | . 27 19 Largest 2 | . 2 2 Hottest 43 | . 40 43 Shots Fired 90 | . 54 36 Gun 90 | . 54 36 Cannon . | . . . Launcher . | . . . Special . | . . . Kinetic 90 | . 54 36 Thermal . | . . . Explosive . | . . . Electromagnetic . | . . . Robot Hit Streak 7 | . 7 6 Robot Miss Streak 3 | . 3 2 Penetration Max . | . . . Secondary Targets 5 | . 4 1 Max Gunslinging Chain 1 | . 1 1 Shots Hit Robots 74 | . 34 40 Core Hits 25 | . 18 7 Critical Hits 1 | . 1 . Critical Kills 1 | . 1 . Critical Parts Destroyed . | . . . Melee Attacks 16 | . . 16 Impact 16 | . . 16 Slashing . | . . . Piercing . | . . . Sneak Attacks . | . . . Combat Hostiles . | . . . Follow-up Attacks . | . . . Damage Inflicted 755 | . 290 465 Guns 547 | . 290 257 Cannons . | . . . Explosions . | . . . Melee 192 | . . 192 Ramming 16 | . . 16 Kinetic 547 | . 290 257 Thermal . | . . . Explosive . | . . . Electromagnetic . | . . . Impact 192 | . . 192 Slashing . | . . . Piercing . | . . . Highest Corruption 2 | . . 2 Average Corruption 2 | . . 2 Corruption Purged . | . . . Overload Shots . | . . . Overflow Damage 13 | . . 13 Projectiles . | . . . Explosions . | . . . Melee 13 | . . 13 Knockbacks . | . . . Impact . | . . . Kinetic . | . . . Secondary . | . . . Self-Inflicted Damage 7 | . . 7 Shots . | . . . Rammed 1 | . . 1 Targets Rammed 3 | . . 3 Kicked 2 | . . 2 Crushed . | . . . Highest Temperature 16 | . 12 16 Average Temperature 6 | . 6 6 Received Heat Transfer 792 | . 66 726 Siege Activations . | . . . Robots Corrupted . | . . . Combat Hostiles . | . . . Parts Fried 1 | . . 1 Impact Corruptions 1 | . . 1 Robots Melted . | . . . Combat Hostiles . | . . . Parts Melted . | . . . Heat Transferred . | . . . Parts Sabotaged . | . . . Parts Stolen . | . . . Parts Stripped . | . . . Power Chain Reactions . | . . . Missiles Intercepted . | . . . Alert | -11 -10 -9 ------- Run | Scr Mat Mat Peak Influence 222 | . 222 95 Average Influence 76 | . 109 44 Maximum Alert Level 1 | . 1 . Low Security (%) 85 | . . . Level 1 14 | . . . Level 2 . | . . . Level 3 . | . . . Level 4 . | . . . Level 5 . | . . . High Security . | . . . Max Security . | . . . Squads Dispatched 5 | . 1 4 Investigation 2 | . 1 1 Extermination . | . . . Reinforcement 3 | . . 3 Assault . | . . . Garrison . | . . . Intercept . | . . . Construction Impeded . | . . . Haulers Reinforced . | . . . Stealth | -11 -10 -9 --------- Run | Scr Mat Mat Distress Signals . | . . . Communications Jammed . | . . . Distress Signals . | . . . Times Spotted 27 | . 10 17 Peak Tracking Total 8 | . 3 8 Tactical Retreats 2 | . 1 1 Traps | -11 -10 -9 ------- Run | Scr Mat Mat Traps Triggered 2 | . 1 1 Indirectly . | . . . Trap Hack Attempts . | . . . Triggered . | . . . Disarmed . | . . . Reprogrammed . | . . . Reused . | . . . Traps Extracted . | . . . Installed . | . . . Triggered . | . . . Machines | -11 -10 -9 ---------- Run | Scr Mat Mat Machines Disabled . | . . . Max in Single Turn . | . . . Machines Sabotaged . | . . . Garrisons Compromised . | . . . Overloaded Fab Kills . | . . . Fab Network Shutdowns . | . . . Hacking | -11 -10 -9 --------- Run | Scr Mat Mat Machines Accessed 3 | . 3 . Terminals . | . . . Fabricators . | . . . Repair Stations 1 | . 1 . Recycling Units 2 | . 2 . Scanalyzers . | . . . Garrison Access . | . . . Total Hacks 5 | . 5 . Successful 5 | . 5 . Failed . | . . . Catastrophic . | . . . Database Lockouts . | . . . Manual . | . . . Terminals . | . . . Fabricators . | . . . Repair Stations 3 | . 3 . Recycling Units 2 | . 2 . Scanalyzers . | . . . Garrison Access . | . . . Terminal Hacks . | . . . Fabricator Hacks . | . . . Repair Station Hacks 3 | . 3 . Scan Component 2 | . 2 . Repair 1 | . 1 . Recycling Unit Hacks 2 | . 2 . Report Inventory 2 | . 2 . Scanalyzer . | . . . Garrison Access Hacks . | . . . Unauthorized Hacks . | . . . Terminals . | . . . Fabricators . | . . . Repair Stations . | . . . Recycling Units . | . . . Scanalyzers . | . . . Garrison Access . | . . . Data Cores Recovered . | . . . Used . | . . . Hacking Detections 1 | . 1 . Full Trace Events . | . . . Feedback Events . | . . . Feedback Blocked . | . . . Robot Schematics Acquired . | . . . Robots Built . | . . . Matter . | . . . Time . | . . . Total Robot Build Rating . | . . . Part Schematics Acquired . | . . . Parts Built . | . . . Matter . | . . . Time . | . . . Total Part Build Rating . | . . . Parts Repaired 1 | . 1 . Time 26 | . 26 . Parts Recycled . | . . . Recycled Matter . | . . . Retrieved Matter . | . . . Retrieved Components . | . . . Parts Scanalyzed . | . . . Part Schematics Acquired . | . . . Parts Damaged . | . . . Bothacking | -11 -10 -9 ------------ Run | Scr Mat Mat Used RIF Installer . | . . . Robots Hacked . | . . . Non-combat . | . . . Combat . | . . . Robot Hacks Applied . | . . . Relay Couplers Released . | . . . Robots Rewired . | . . . Allies Hacked . | . . . Hacks Repelled . | . . . Allies | -11 -10 -9 -------- Run | Scr Mat Mat Total Allies . | . . . Largest Group . | . . . Highest-Rated Group . | . . . Highest-Rated Ally . | . . . Total Orders . | . . . Ally Attacks . | . . . Total Damage . | . . . Kills . | . . . Allies Corrupted . | . . . Allies Melted . | . . . Intel | -11 -10 -9 ------- Run | Scr Mat Mat Robot Analysis Total . | . . . Derelict Logs Recovered . | . . . Drone Launches . | . . . Drone Recoveries . | . . . Exploration | -11 -10 -9 ------------- Run | Scr Mat Mat Turns Passed 965 | 95 542 328 Spaces Moved 579 | 77 346 156 Core 29 | 21 . 8 Treads . | . . . Legs 550 | 56 346 148 Wheels . | . . . Hover . | . . . Flight . | . . . Fastest Speed 50 | 50 120 120 Average Speed 120 | 100 120 129 Slowest Speed 350 | 120 120 350 Overloaded Moves . | . . . Propulsion Burnouts . | . . . Robots Hopped . | . . . Cave-ins Triggered . | . . . Exploration Rate (%) 20 | 5 38 19 Regions Visited 2 Branch Regions . Pre-discovered Areas . | . . . Known Exits Taken . | . . . Unknown Exits Taken 2 | 1 1 . Scrap Searched . | . . . Spaces Dug . | . . . Terrain Destroyed . | . . . Melee . | . . . Projectile . | . . . AOE . | . . . Actions | -11 -10 -9 --------- Run | Scr Mat Mat Total 746 | 94 428 224 Wait 42 | . 28 14 Move 577 | 76 345 156 Hop . | . . . Pick Up 29 | 9 15 5 Fast Attach 2 | . 1 1 Attach 17 | 6 2 9 Detach . | . . . Swap 9 | 2 6 1 Drop 5 | 1 4 . Fire 46 | . 27 19 Melee 16 | . . 16 Ram . | . . . Kick 3 | . . 3 Crush . | . . . Escape Stasis . | . . . Rewire . | . . . Trap . | . . . Miscellaneous . | . . . Route ------- -11/Scrapyard -10/Materials -9/Materials History --------- Turn | Location | Event 12 | -11/Scrapyard | Discovered new exit (range 14) 96 | -11/Scrapyard | Entered Materials 304 | -10/Materials | Build established: Mutant 608 | -10/Materials | Repaired Med. Storage Unit 626 | -10/Materials | Discovered new exit (range 9) 638 | -10/Materials | Entered another Materials area 638 | -9/Materials | Evolved 2 slots: Propulsion x2 843 | -9/Materials | Lost 3 parts (3n) 923 | -9/Materials | Core integrity fell below 50% 947 | -9/Materials | Core integrity fell below 20% 966 | -9/Materials | Destroyed by G-34 Mercenary with Small Laser Last Messages --------------- O-16 Technician uses terminal to summon reinforcements. ALERT: Hostiles spotted, dispatching reinforcements to Terminal M001. O-16 Technician locks terminal. Triggered Alarm Trap. An alarm sounds. ALERT: Alarm triggered, dispatching investigation squad. U-05 Engineer lays Concrete. Slammed into Y-45 Defender. Hvy. Assault Rifle destroyed. System corrupted by crushing effect (+1). Destabilizing: System corrupted (+1). Lgt. Assault Rifle destroyed. Ion Engine destroyed. Kicked G-34 Mercenary out of the way. Aluminum Leg destroyed. ALERT: Hostiles spotted, dispatching reinforcements to Terminal M004. Lgt. Ion Engine destroyed. EM Shotgun destroyed. Map ----- +----------------------------------------------------+ | | | | | ???????????????????????????????????????????? | | ???????????????????????????????????????????? | | ???????????????????????????????????????????? | | ???????????????????????????????????????????? | | ???????????????????????????????????????????? | | ???????????????????????????????????????????? | | ???????????????????????????????????????????? | | ???????????????????????????????????????????? | | ????????????????? ???????????????????????? | | ????????????????# ???????????????????????? | | ????????????????#g ???????????????????????? | | ????????????????# #??????????????????????? | | ?????????????#### +??????????????????????? | | ?????????????#!! #??????????????????????? | | ?????????????! #??????????????????????? | | ?????????????? #??????????????????????? | | ??????????????? #??????????????????????? | | ??????????????? #??????????????????????? | | ???????????????? #??????????????????????? | | ????????????????# #############??????????? | | ????????????????# ???????????? | | ????????????????# ???????????????? | | ????????????????# ???????????????????? | | ????????????????# @#??????????????????????? | | ????????????????# #??????????????????????? | | ????????????????# k #??????????????????????? | | ????????????????#ggg########???????????????? | | ????????????????# ggg #???????????????? | | ????????????????# #???????????????? | | ????????????????# #???????????????? | | ????????????????######## #???????????????? | | ????????????????# """ # #########???????? | | ????????????????# "R" # # #???????? | | ????????????????# " " + / #???????? | | ????????????????# # # #???????? | | ????????????????# / # #########???????? | | ????????????????# ?# #???????????????? | | ????????????????#### #?## ##???????????????? | | ???????????????????##???# #????????????????? | | ????????????????????????# #????????????????? | | ????????????????????????# #????????????????? | | ????????????????????????# #????????????????? | | ?????????????########???# #????????????????? | | ?????????????? #???# #????????????????? | | ?????????????""""" |#???# #????????????????? | | ???????????# """"" ##### #######+###??????? | | ???????????# """"" # #??????? | | ???????????# # ??? | +----------------------------------------------------+ Best States ------------- Heat Dissipation 28 Energy Generation 10 Energy Capacity 250 Matter Stores 300 Matter Capacity 450 Sight Range 16 Terrain Scan Density 60 Propulsion Shielding 33 Evasion (%) 50 Item Schematics ----------------- None Robot Schematics ------------------ None Fabricated ------------ Nothing Alien Tech Used ----------------- None Achievements -------------- None Challenges ------------ None Game ------ Seed ArchitectMiniSplitter Manual? 0 Play Time 00:20:57 Cumulative 6.7 hours Start 2019.11.10 @ 11:07:16 End 2019.11.10 @ 11:35:54 Sessions 1 Manual Loads 0 Difficulty Rogue Special Mode None Game No. 14 Rogue 14 Adventurer 0 Explorer 0 Win Type - Total 0 Types 0/0/0/0/0/0/0 Lore% 12 Gallery% 14 Achievement% 12 Wizard Run 0 Options --------- ASCII 0 Keyboard 0 Movement Arrows Keybinds 0 Fullscreen 1 Font 20/SmallcapsGlow Map View 66x50 Tactical HUD 0 Map Filters NONE Filters NONE Steam 1 RUN: 1d81cb47-b03a-4980-b8dd-7cc073d55a8c